bitfinex/quotes_SOLUSD_20260306
["timestamp","ask_amount","ask_price","bid_price","bid_amount"]
[1772826903786,4.32912383,85.2,85.151,0.51825548]
[1772826903990,11.73722696,85.199,85.153,0.28432314]
[1772826904179,0.69599997,85.217,85.158,0.51825548]
[1772826904180,4.32912383,85.21,85.158,0.51825548]
[1772826904374,0.69599997,85.217,85.168,0.51825548]
[1772826905704,4.32912383,85.18,85.147,0.51825548]
[1772826905875,4.32912383,85.19,85.147,0.66041705]
[1772826906080,4.32912383,85.19,85.148,0.51825548]
[1772826906509,4.32912383,85.18,85.148,0.51825548]
[1772826906682,4.32912383,85.17,85.148,0.51825548]
[1772826906883,4.32912383,85.17,85.146,11.74453291]
[1772826907278,4.32912383,85.17,85.147,0.51825548]
[1772826907497,4.32912383,85.17,85.148,11.74425705]
[1772826907685,29.34394837,85.197,85.149,0.51825548]
[1772826907889,4.32912383,85.18,85.149,0.51825548]
[1772826909378,4.32912383,85.19,85.149,0.51825548]
[1772826909796,4.32912383,85.19,85.151,0.51825548]
[1772826912276,4.32912383,85.19,85.14,0.24216157]
[1772826912277,4.32912383,85.19,85.152,41.1029688]
[1772826912478,4.32912383,85.19,85.153,0.51825548]
[1772826912881,4.32912383,85.2,85.155,0.51825548]
[1772826913081,11.73609622,85.208,85.159,0.51825548]
[1772826913288,4.32912383,85.21,85.169,0.51825548]
[1772826913689,16.0648843,85.21,85.169,0.51825548]
[1772826914295,4.32912383,85.21,85.169,0.51825548]
[1772826914500,4.3288575,85.21,85.171,0.51825548]
[1772826914706,4.3288575,85.2,85.171,0.51825548]
[1772826916285,4.3288575,85.21,85.171,0.51825548]
[1772826916485,16.06457616,85.21,85.173,0.51825548]
[1772826917105,4.3288575,85.2,85.173,0.51825548]
[1772826917289,4.3288575,85.2,85.172,11.74094772]
[1772826917484,41.07499808,85.21,85.173,0.51825548]
[1772826917684,4.3288575,85.2,85.173,0.51825548]
[1772826918603,4.3288575,85.19,85.174,11.74067203]
[1772826918792,11.73722696,85.199,85.174,11.74067203]
[1772826920003,4.3288575,85.2,85.174,0.51825548]
[1772826920305,11.73584949,85.209,85.174,0.51825548]
[1772826922409,4.3288575,85.2,85.176,0.51825548]
[1772826922604,4.3288575,85.2,85.175,11.74053419]
[1772826922801,4.3288575,85.2,85.175,12.25878967]
[1772826924212,4.3288575,85.2,85.169,0.51825548]
[1772826924411,11.73722696,85.199,85.17,12.25947891]
[1772826924603,11.73722696,85.199,85.171,0.51825548]
[1772826927337,11.73722696,85.199,85.172,11.74094772]
[1772826927500,11.73722696,85.199,85.173,0.51825548]
[1772826929910,11.73718491,85.2,85.175,0.51825548]
[1772826930233,16.06604241,85.2,85.175,0.51825548]
[1772826930409,4.3288575,85.21,85.175,0.51825548]
[1772826930604,29.33679244,85.218,85.175,0.51825548]
[1772826931023,11.73474776,85.217,85.175,0.51825548]
[1772826931223,23.66812116,85.223,85.177,0.51825548]
[1772826931420,23.66812116,85.223,85.179,0.51825548]
[1772826932733,23.66812116,85.223,85.188,0.51825548]
[1772826934935,23.66812116,85.223,85.19,0.51825548]
[1772826936224,35.4021621,85.223,85.19,0.51825548]
[1772826937127,35.4021621,85.223,85.192,0.51825548]
[1772826938735,23.66812116,85.223,85.192,0.51825548]
[1772826939436,23.66812116,85.223,85.194,0.51825548]
[1772826940627,23.66812116,85.223,85.196,0.51825548]
[1772826943839,23.66812116,85.223,85.198,0.51825548]
[1772826944824,23.66812116,85.223,85.2,0.51825548]
[1772826946925,23.66812116,85.223,85.202,0.51825548]
[1772826947340,4.3288575,85.23,85.202,0.51825548]
[1772826947341,11.73061808,85.247,85.202,0.51825548]
[1772826947650,4.3288575,85.24,85.202,0.51825548]
[1772826949346,11.73171904,85.239,85.204,0.51825548]
[1772826951443,11.73171904,85.239,85.206,0.51825548]
[1772826954441,4.3288575,85.23,85.203,12.25489859]
[1772826955044,4.3288575,85.23,85.204,0.51825548]
[1772826956955,4.3288575,85.23,85.206,0.51825548]
[1772826957339,11.73309554,85.229,85.206,0.51825548]
[1772826960459,11.73309554,85.229,85.208,0.51825548]
[1772826961348,11.73185668,85.238,85.208,0.51825548]
[1772826962754,2.47215037,101.99,85.208,0.51825548]
[1772826962950,2.47215037,101.99,85.2,0.14216157]
[1772826962951,11.72924217,85.257,85.21,0.51825548]
[1772826963567,4.3288575,85.25,85.21,0.51825548]
[1772826963757,11.72924217,85.257,85.21,0.51825548]
[1772826964063,4.3288575,85.25,85.21,0.51825548]
[1772826965375,4.3288575,85.25,85.212,0.51825548]
[1772826966373,11.73034287,85.249,85.213,41.07354511]
[1772826966570,11.73034287,85.249,85.214,0.51825548]
[1772826967468,4.3288575,85.26,85.214,0.51825548]
[1772826967770,4.3288575,85.25,85.214,0.51825548]
[1772826968171,41.04801444,85.266,85.218,0.51825548]
[1772826968345,4.3288575,85.26,85.218,0.51825548]
[1772826968664,11.72896702,85.259,85.22,0.51825548]
[1772826969248,4.3288575,85.25,85.22,0.51825548]
[1772826970957,4.3288575,85.26,85.222,0.51825548]
[1772826972361,11.72896702,85.259,85.224,0.51825548]
[1772826973366,4.3288575,85.25,85.224,0.51825548]
[1772826974573,11.73034287,85.249,85.226,0.51825548]
[1772826974789,11.7291046,85.258,85.226,0.51825548]
[1772826976472,4.32374574,85.26,85.227,11.73337088]
[1772826976676,4.32374574,85.26,85.228,0.51825548]
[1772826977677,4.32374574,85.25,85.223,0.51825548]
[1772826979281,4.32374574,85.26,85.225,0.51825548]
[1772826979882,4.32374574,85.25,85.225,0.51825548]
[1772826980882,4.32374574,85.25,85.227,0.51825548]
[1772826981977,11.73034287,85.249,85.227,0.51825548]
[1772826982276,29.3193226,85.268,85.228,11.7332332]
[1772826982480,4.32374574,85.25,85.229,0.51825548]
[1772826982785,4.32374574,85.26,85.229,0.51825548]
[1772826984768,29.3193226,85.268,85.231,0.51825548]
[1772826986585,4.32374574,85.26,85.231,0.51825548]
[1772826987085,4.32374574,85.25,85.225,0.51825548]
[1772826988285,11.72962993,85.255,85.227,0.51825548]
[1772826989691,0.45107621,85.254,85.226,38.50043041]
[1772826990368,0.45107621,85.254,85.215,0.28432314]
[1772826990587,11.72887014,85.26,85.215,0.42648471]
[1772826991487,12.17994635,85.26,85.218,0.49547678]
[1772826993604,0.46203294,85.265,85.223,0.45724515]
[1772826993788,0.46203294,85.265,85.229,0.45724515]
[1772826994886,0.46203294,85.263,85.229,0.45724515]
[1772826995280,11.72827922,85.264,85.229,0.45724515]
[1772826995786,0.46203294,85.264,85.231,0.45724515]
[1772826996283,0.46203294,85.266,85.231,0.45724515]
[1772826996485,0.46203294,85.27,85.231,0.45724515]
[1772826996793,0.46203294,85.27,85.213,3.69383402]
[1772826996794,0.46203294,85.239,85.209,0.45724515]
[1772826996968,0.46203294,85.259,85.209,0.45724515]
[1772826997173,0.46203294,85.259,85.219,0.45724515]
[1772826997790,0.46203294,85.259,85.221,0.45724515]
[1772826998894,0.46203294,85.249,85.221,0.45724515]
[1772826999775,0.46203294,85.239,85.222,11.73405928]
[1772827000293,0.46203294,85.239,85.222,12.19130443]
[1772827000673,0.46203294,85.247,85.223,0.45724515]
[1772827001290,0.46203294,85.259,85.223,0.45724515]
[1772827002000,0.46203294,85.259,85.225,0.45724515]
[1772827004282,0.46203294,85.259,85.227,0.45724515]
[1772827005490,0.46203294,85.259,85.229,0.45724515]
[1772827006514,0.46203294,85.257,85.229,0.45724515]
[1772827008511,0.46203294,85.257,85.231,0.45724515]
[1772827010516,0.46203294,85.255,85.233,0.45724515]
[1772827011913,0.46203294,85.255,85.235,0.45724515]
[1772827012709,0.46203294,85.269,85.235,0.45724515]
[1772827013713,0.46203294,85.259,85.235,0.45724515]
[1772827014208,0.46203294,85.259,85.236,11.73213196]
[1772827014592,0.46203294,85.259,85.237,0.45724515]
[1772827016132,0.45949088,85.258,85.237,0.46357424]
[1772827017409,0.45949088,85.257,85.214,0.46357424]
[1772827018805,0.45949088,85.257,85.217,0.46357424]
[1772827019014,0.45949088,85.257,85.219,0.46357424]
[1772827020628,4.32374574,85.25,85.219,0.46357424]
[1772827020928,0.45949088,85.249,85.221,0.46357424]
[1772827021232,0.45949088,85.239,85.22,11.73433466]
[1772827021726,0.45949088,85.239,85.212,0.48290032]
[1772827022228,0.48196649,85.229,85.197,0.48290032]
[1772827022410,0.48196649,85.229,85.194,41.08270534]
[1772827022411,0.48196649,85.229,85.199,0.48290032]
[1772827023125,0.48196649,85.229,85.201,0.48290032]
[1772827025109,0.48196649,85.229,85.203,0.48290032]
[1772827026931,0.48196649,85.229,85.205,0.48290032]
[1772827027911,0.48195403,85.227,85.199,0.48290032]
[1772827028109,0.48195403,85.227,85.201,0.48290032]
[1772827029010,0.48195403,85.227,85.203,0.48290032]
[1772827029710,0.48194925,85.225,85.203,0.48290032]
[1772827031730,0.48194925,85.225,85.204,11.73653819]
[1772827031938,0.48194925,85.225,85.205,0.48290032]
[1772827033931,0.48194925,85.225,85.206,11.7362627]
[1772827034132,0.48194925,85.225,85.207,0.48290032]
[1772827035148,0.48193554,85.23,85.207,0.48290032]
[1772827035934,0.48193554,85.23,85.196,0.48290032]
[1772827035935,11.7332332,85.228,85.196,0.48290032]
[1772827036143,0.48193334,85.227,85.191,29.34570037]
[1772827036422,0.48193334,85.227,85.193,0.48290032]
[1772827038541,0.48193334,85.227,85.192,11.73819137]
[1772827038542,0.48192903,85.225,85.195,0.48290032]
[1772827038744,0.48192903,85.219,85.195,0.48290032]
[1772827040852,0.48192482,85.217,85.19,0.48290032]
[1772827042958,0.48192482,85.217,85.192,0.48290032]
[1772827044546,0.48191667,85.222,85.194,0.48290032]
[1772827044748,0.48191667,85.227,85.194,0.48290032]
[1772827046953,0.48191667,85.227,85.196,0.48290032]
[1772827048741,0.4819089,85.239,85.196,0.48290032]
[1772827052447,0.46977925,85.237,85.198,0.45432257]
[1772827052656,0.46977925,85.242,85.198,0.45432257]
[1772827052838,0.46977925,85.239,85.198,0.45432257]
[1772827053856,0.46977925,85.229,85.198,0.45432257]
[1772827054235,0.46977925,85.219,85.198,0.45432257]
[1772827054435,0.46977925,85.219,85.2,0.45432257]
[1772827055354,0.46977925,85.229,85.2,0.45432257]
[1772827056959,0.46977925,85.229,85.202,0.45432257]
[1772827057159,0.46977925,85.233,85.202,0.45432257]
[1772827060441,0.46977925,85.233,85.204,0.45432257]
[1772827061362,0.46977925,85.231,85.204,0.45432257]
[1772827063336,0.46977925,85.231,85.206,0.45432257]
[1772827065667,0.46977925,85.229,85.207,12.19044753]
[1772827066265,0.46977925,85.229,85.203,0.45432257]
[1772827068673,0.46977925,85.227,85.202,12.19109541]
[1772827068861,0.46977925,85.227,85.203,0.45432257]
[1772827069453,0.46977925,85.219,85.194,11.73789365]
[1772827069654,0.46977925,85.219,85.195,0.45432257]
[1772827070974,0.46977925,85.219,85.196,11.73764026]
[1772827071159,0.46977925,85.219,85.197,0.45432257]
[1772827074575,0.46977925,85.217,85.198,11.73736472]
[1772827075263,0.46977925,85.209,85.168,0.45432257]
[1772827075663,0.46977925,85.217,85.168,0.45432257]
[1772827076652,0.46977925,85.217,85.173,0.4951032]
[1772827076882,0.48186075,85.215,85.173,0.4951032]
[1772827079066,16.54349205,85.22,85.175,0.4951032]
[1772827079282,12.21556241,85.225,85.179,0.4951032]
[1772827079464,0.48185679,85.225,85.189,0.4951032]
[1772827080081,0.4818555,85.233,85.189,0.4951032]
[1772827080492,0.4818555,85.232,85.189,0.4951032]
[1772827080692,4.32720327,85.23,85.189,0.4951032]
[1772827080993,0.4818555,85.229,85.189,0.4951032]
[1772827083504,0.4818555,85.229,85.191,0.47095534]
[1772827084601,11.7325449,85.233,85.193,0.47095534]
[1772827084770,0.47429683,85.232,85.193,0.61311691]
[1772827084970,0.47429683,85.241,85.198,0.14216157]
[1772827085279,0.47429683,85.239,85.199,0.47095534]
[1772827086689,0.47429683,85.239,85.201,0.47095534]
[1772827088997,0.47429683,85.237,85.203,0.47095534]
[1772827091105,0.47429683,85.237,85.205,0.47095534]
[1772827093309,0.47429683,85.236,85.207,0.47095534]
[1772827095415,0.47429683,85.236,85.209,0.47095534]
[1772827096608,29.32596114,85.249,85.209,0.47095534]
[1772827096609,0.47429683,85.249,85.209,0.47095534]
[1772827096922,0.47429683,85.255,85.214,0.14216157]
[1772827097212,0.47429683,85.255,85.219,0.47095534]
[1772827097513,0.47429683,85.255,85.221,0.47095534]
[1772827099209,7.88606708,85.258,85.222,41.06920748]
[1772827099416,0.47429683,85.257,85.223,0.47095534]
[1772827100208,0.47429683,85.256,85.223,0.47095534]
[1772827101717,0.47429683,85.256,85.225,0.47095534]
[1772827102416,0.47429683,85.255,85.225,0.47095534]
[1772827103619,0.47429683,85.255,85.227,0.47095534]
[1772827103913,0.47429683,85.253,85.227,0.47095534]
[1772827105102,0.47429683,85.249,85.227,0.47095534]
[1772827105816,0.47429683,85.249,85.229,0.47095534]
[1772827107119,0.47429683,85.257,85.231,0.47095534]
[1772827110817,0.47429683,85.257,85.233,0.47095534]
[1772827113631,0.47429683,85.257,85.23,29.33239469]
[1772827113632,0.47429683,85.257,85.235,0.4648024]
[1772827116129,0.47429683,85.257,85.237,0.4648024]
[1772827116333,0.47567985,85.269,85.237,0.4648024]
[1772827116828,0.47567985,85.268,85.237,0.4648024]
[1772827119734,0.47567985,85.266,85.239,0.4648024]
[1772827119916,0.47567985,85.259,85.229,0.4648024]
[1772827121716,0.47567985,85.259,85.231,0.4648024]
[1772827122028,0.47567985,85.264,85.231,0.4648024]
[1772827125641,0.47567985,85.264,85.22,0.14216157]
[1772827125642,0.47567985,85.263,85.233,0.4648024]
[1772827127841,0.47567985,85.263,85.235,0.4648024]
[1772827128649,0.47567985,85.262,85.235,0.4648024]
[1772827129224,0.47567985,85.262,85.234,11.73240725]
[1772827129443,0.47567985,85.259,85.234,11.73240725]
[1772827129751,0.47567985,85.249,85.234,11.73240725]
[1772827129923,0.47567985,85.249,85.228,0.4648024]
[1772827130838,0.47567985,85.248,85.224,0.4648024]
[1772827132251,0.47567985,85.248,85.226,0.4648024]
[1772827134054,0.47567985,85.253,85.226,0.4648024]
[1772827134234,0.47567985,85.253,85.228,0.4648024]
[1772827137035,11.72856269,85.262,85.23,0.48789147]
[1772827137241,0.48008016,85.261,85.23,0.48789147]
[1772827139256,0.48008016,85.259,85.232,0.48789147]
[1772827141065,0.48008016,85.259,85.219,0.48789147]
[1772827141355,0.48008016,85.257,85.222,0.48789147]
[1772827143259,0.48008016,85.257,85.223,41.06872557]
[1772827143556,11.72937975,85.256,85.224,0.49961104]
[1772827143790,0.47412755,85.255,85.224,0.49961104]
[1772827145364,0.47412755,85.253,85.223,12.23353263]
[1772827145663,0.47412755,85.253,85.224,0.49961104]
[1772827145874,0.47412755,85.239,85.219,11.73445042]
[1772827146567,0.47412755,85.239,85.219,12.23406146]
[1772827146761,0.47412755,85.239,85.22,0.49961104]
[1772827148782,0.47412755,85.237,85.196,3.69383402]
[1772827149074,0.47412755,85.237,85.198,0.49961104]
[1772827152179,0.47412755,85.235,85.2,0.49961104]
[1772827153467,0.47412755,85.249,85.2,0.49961104]
[1772827153856,0.47412755,85.248,85.2,0.49961104]
[1772827155566,0.47412755,85.246,85.202,0.49961104]
[1772827158668,0.47412755,85.244,85.204,0.49961104]
[1772827159778,0.47412755,85.239,85.204,0.49961104]
[1772827161593,0.47412755,85.237,85.206,0.49961104]
[1772827163679,0.47412755,85.237,85.208,0.49961104]
[1772827163879,0.47412755,85.236,85.208,0.49961104]
[1772827166581,0.47412755,85.236,85.21,0.49961104]
[1772827167397,0.47412755,85.234,85.21,0.49961104]
[1772827170284,0.47412755,85.234,85.212,0.49961104]
[1772827171400,0.47412755,85.234,85.214,0.49961104]
[1772827173508,0.47193457,85.229,85.205,0.45879411]
[1772827176105,0.47193457,85.229,85.189,41.51160132]
[1772827176106,0.47193457,85.228,85.207,0.45879411]
[1772827176311,0.47193457,85.219,85.197,11.7374076]
[1772827176496,0.47193457,85.209,85.19,0.45879411]
[1772827177006,0.47193457,85.209,85.192,0.45879411]
[1772827178012,0.47193457,85.219,85.192,0.45879411]
[1772827180113,0.47193457,85.219,85.194,0.45879411]
[1772827180308,11.73461005,85.218,85.194,0.45879411]
[1772827180500,0.47193457,85.217,85.194,0.45879411]
[1772827182310,4.32574495,85.22,85.16,0.14216157]
[1772827182311,0.47193457,85.215,85.176,0.45879411]
[1772827182616,0.47193457,85.209,85.177,0.45879411]
[1772827183109,0.47193457,85.214,85.179,0.45879411]
[1772827185223,0.47193457,85.214,85.181,0.45879411]
[1772827188722,0.47193457,85.214,85.183,0.45879411]
[1772827191726,0.47193457,85.214,85.185,0.45879411]
[1772827192435,0.47193457,85.213,85.185,0.45879411]
[1772827193734,0.47193457,85.213,85.187,0.45879411]
[1772827197614,0.47193457,85.213,85.189,0.49913517]
[1772827199339,0.45794156,85.209,85.188,11.73874254]
[1772827199722,0.45794156,85.209,85.188,12.23787771]
[1772827200152,0.45794156,85.209,85.189,0.49913517]
[1772827200353,0.45794156,85.209,85.188,11.73874254]
[1772827200649,11.73491326,85.216,85.189,0.49913517]
[1772827200836,0.45794156,85.215,85.189,0.49913517]
[1772827201551,0.69599997,85.249,85.19,0.49913517]
[1772827201850,41.05668168,85.248,85.194,0.48809852]
[1772827202023,41.05668168,85.248,85.192,0.28432314]
[1772827202024,41.05668168,85.248,85.198,0.48809852]
[1772827202326,11.73048048,85.248,85.208,0.48809852]
[1772827202526,4.32574495,85.23,85.192,0.48809852]
[1772827203228,4.32574495,85.22,85.192,0.48809852]
[1772827203436,4.32574495,85.23,85.192,0.48809852]
[1772827203748,4.32574495,85.23,85.194,0.48809852]
[1772827203749,0.02382768,85.228,85.194,0.48809852]
[1772827203925,0.02382768,85.219,85.194,0.48809852]
[1772827204530,0.02382739,85.209,85.177,0.48809852]
[1772827204926,0.02382739,85.235,85.179,0.48809852]
[1772827205130,11.75568379,85.238,85.186,0.14216157]
[1772827205348,0.02382711,85.238,85.19,0.14216157]
[1772827205537,0.02382711,85.238,85.199,0.48809852]
[1772827205738,0.02382711,85.238,85.201,0.48809852]
[1772827205936,0.02382711,85.229,85.201,0.48809852]
[1772827206443,0.02382683,85.235,85.201,0.48809852]
[1772827208052,11.73178106,85.239,85.203,0.48809852]
[1772827208232,11.75560735,85.239,85.203,0.48809852]
[1772827208637,0.02382629,85.238,85.203,0.48809852]
[1772827210152,11.73178106,85.239,85.205,0.48809852]
[1772827210555,11.75560681,85.239,85.205,0.48809852]
[1772827210942,0.02382575,85.239,85.205,0.48809852]
[1772827211142,0.02382549,85.248,85.207,0.48809852]
[1772827211852,11.72976802,85.254,85.209,0.48809852]
[1772827212055,0.02382549,85.253,85.209,0.48809852]
[1772827212356,0.02382523,85.249,85.211,0.48809852]
[1772827215642,0.02382448,85.248,85.213,0.48809852]
[1772827217440,0.02382448,85.248,85.214,11.73516088]
[1772827217641,0.02382398,85.229,85.193,0.14216157]
[1772827217848,0.02382398,85.229,85.194,0.48809852]
[1772827218771,0.02382398,85.229,85.198,0.48809852]
[1772827218944,0.02382374,85.239,85.198,0.48809852]
[1772827219464,0.0238235,85.248,85.198,0.48809852]
[1772827219641,0.0238235,85.248,85.202,0.48809852]
[1772827220451,0.0238235,85.248,85.203,0.14216157]
[1772827220653,0.0238235,85.248,85.202,0.48809852]
[1772827220654,0.0238235,85.248,85.208,0.48809852]
[1772827221260,11.73034287,85.249,85.21,0.48809852]
[1772827221652,0.02382303,85.248,85.21,0.48809852]
[1772827224561,0.02382303,85.248,85.211,41.07450915]
[1772827224857,0.02382303,85.248,85.212,0.48809852]
[1772827225665,11.73034287,85.249,85.212,0.50001003]
[1772827225666,10.16822802,85.249,85.212,0.50001003]
[1772827228352,10.16822802,85.249,85.214,0.50001003]
[1772827230580,10.16822802,85.249,85.216,0.50001003]
[1772827231168,29.31926851,85.269,85.218,0.50001003]
[1772827231474,4.32512402,85.26,85.218,0.50001003]
[1772827231980,4.32512402,85.24,85.213,0.50001003]
[1772827232778,11.73171904,85.239,85.215,0.50001003]
[1772827233181,11.73116588,85.244,85.215,0.50001003]
[1772827236187,29.32646215,85.248,85.217,0.50001003]
[1772827236568,11.73034287,85.249,85.217,0.50001003]
[1772827239594,11.73034287,85.249,85.218,11.73461005]
[1772827239889,11.73034287,85.249,85.219,0.50001003]
[1772827241892,41.05620006,85.249,85.219,0.50001003]
[1772827242076,41.05620006,85.249,85.208,29.33976414]
[1772827242077,4.32512402,85.24,85.212,0.50001003]
[1772827242683,41.05620006,85.249,85.212,0.50001003]
[1772827242973,41.05620006,85.249,85.214,0.50001003]
[1772827243172,4.32512402,85.24,85.214,0.50001003]
[1772827243688,41.05620006,85.249,85.214,0.50001003]
[1772827244584,4.32512402,85.24,85.214,0.50001003]
[1772827246501,4.32512402,85.23,85.2,0.50001003]
[1772827246682,4.32512402,85.22,85.195,0.50001003]
[1772827246883,4.32512402,85.23,85.195,0.50001003]
[1772827247082,41.06101666,85.239,85.195,0.50001003]
[1772827247283,4.32512402,85.21,85.183,0.50001003]
[1772827248486,11.73550812,85.212,85.185,0.50001003]
[1772827249402,4.32512402,85.21,85.185,0.50001003]
[1772827249705,4.32512402,85.23,85.189,0.50001003]
[1772827249882,29.32654521,85.247,85.185,0.28432314]
[1772827250086,29.32654521,85.247,85.199,0.50001003]
[1772827250302,4.32512402,85.25,85.204,0.14216157]
[1772827250502,11.73034287,85.249,85.211,0.50001003]
[1772827250899,29.31998431,85.267,85.213,0.50001003]
[1772827251207,11.72934168,85.257,85.219,0.50001003]
[1772827251410,11.73006768,85.251,85.219,0.50001003]
[1772827251701,4.32512402,85.25,85.219,0.50001003]
[1772827254309,11.73006768,85.251,85.221,0.50001003]
[1772827257213,11.72960612,85.255,85.223,0.50001003]
[1772827257396,29.31676797,85.276,85.223,0.50001003]
[1772827257596,4.32512402,85.27,85.223,0.50001003]
[1772827257805,11.72931018,85.257,85.223,0.50001003]
[1772827258491,11.72970861,85.254,85.223,0.50001003]
[1772827259719,4.32512402,85.26,85.225,0.50001003]
[1772827260719,4.32512402,85.27,85.225,0.50001003]
[1772827260918,11.72833065,85.264,85.225,0.50001003]
[1772827261618,11.72833065,85.264,85.228,0.14216157]
[1772827261808,11.72833065,85.264,85.229,0.50001003]
[1772827262314,4.32512402,85.27,85.23,0.50001003]
[1772827262616,11.72691638,85.274,85.23,0.50001003]
[1772827263306,11.7262163,85.279,85.231,41.06487075]
[1772827263511,11.7262163,85.279,85.232,0.50001003]
[1772827263820,11.7262163,85.279,85.234,0.50001003]
[1772827264012,11.7262163,85.279,85.238,0.50001003]
[1772827265816,11.7262163,85.279,85.24,0.50001003]
[1772827267719,11.7262163,85.279,85.242,0.50001003]
[1772827269224,4.32512402,85.27,85.242,0.50001003]
[1772827269624,11.7275915,85.269,85.243,11.73116854]
[1772827270322,11.7275915,85.269,85.244,0.50001003]
[1772827270515,4.52512402,85.28,85.244,0.50001003]
[1772827270715,16.25126644,85.28,85.244,0.50001003]
[1772827272133,4.32512402,85.27,85.246,0.50001003]
[1772827272330,4.32512402,85.27,85.233,0.50001003]
[1772827272632,4.32512402,85.26,85.233,0.50001003]
[1772827273532,4.32512402,85.26,85.233,11.7325449]
[1772827273906,4.32512402,85.26,85.233,12.23255493]
[1772827275618,11.72896702,85.259,85.233,12.23255493]
[1772827275931,11.72834269,85.264,85.234,0.50001003]
[1772827277021,4.32512402,85.26,85.234,0.50001003]
[1772827277839,11.72896702,85.259,85.234,0.50001003]
[1772827278043,11.72896702,85.259,85.235,11.7322696]
[1772827280523,4.32350744,85.26,85.235,11.7322696]
[1772827282323,4.32350744,85.27,85.236,0.50001003]
[1772827282625,4.32350744,85.26,85.235,11.7322696]
[1772827283738,11.72896702,85.259,85.234,0.50001003]
[1772827285033,4.32350744,85.27,85.236,0.50001003]
[1772827285234,11.7262163,85.279,85.236,0.50001003]
[1772827285540,41.04175705,85.279,85.236,0.50001003]
[1772827285742,4.32350744,85.27,85.236,0.50001003]
[1772827285935,41.04175705,85.279,85.236,0.50001003]
[1772827286843,41.04175705,85.279,85.238,0.50001003]
[1772827287645,0.2,85.28,85.24,0.50001003]
[1772827287842,0.2,85.28,85.248,0.14216157]
[1772827288145,0.2,85.28,85.249,0.50001003]
[1772827288531,0.2,85.28,85.259,0.50001003]
[1772827288726,0.2,85.29,85.259,0.48255006]
[1772827288927,0.2,85.29,85.261,0.48255006]
[1772827289647,29.30536009,85.309,85.261,0.48255006]
[1772827289648,0.2,85.31,85.263,0.48255006]
[1772827289820,0.2,85.31,85.273,0.48255006]
[1772827290026,0.2,85.32,85.272,0.14216157]
[1772827290224,0.2,85.32,85.279,0.48255006]
[1772827290632,0.2,85.32,85.281,0.48255006]
[1772827290840,0.2,85.33,85.289,0.48255006]
[1772827292346,0.2,85.33,85.292,0.46052163]
[1772827292546,0.2,85.33,85.297,0.14216157]
[1772827292853,0.2,85.33,85.298,0.46052163]
[1772827293052,0.2,85.34,85.301,0.46052163]
[1772827293251,11.9137191,85.37,85.309,0.46052163]
[1772827293449,11.9137191,85.37,85.294,0.28432314]
[1772827293450,0.2,85.37,85.351,0.46052163]
[1772827293750,0.2,85.37,85.33,0.14216157]
[1772827294051,0.49424132,85.369,85.33,0.14216157]
[1772827294452,0.49424132,85.368,85.309,0.28432314]
[1772827294658,0.49424132,85.368,85.309,0.42648471]
[1772827295852,0.49424132,85.368,85.311,0.46052163]
[1772827296053,0.49424132,85.368,85.313,0.46052163]
[1772827296351,0.49424132,85.368,85.328,0.14216157]
[1772827296352,0.49424132,85.367,85.328,0.14216157]
[1772827296550,0.49424132,85.367,85.329,0.46052163]
[1772827297439,0.2,85.37,85.329,0.46052163]
[1772827297653,0.2,85.38,85.339,0.46052163]
[1772827297950,0.49424132,85.389,85.351,0.46052163]
[1772827298152,0.49424132,85.389,85.359,0.46052163]
[1772827298452,0.49424132,85.389,85.361,0.46052163]
[1772827298646,0.49424132,85.396,85.361,0.46052163]
[1772827299356,12.20441473,85.396,85.361,0.46052163]
[1772827299943,0.49424132,85.388,85.361,0.46052163]
[1772827300545,0.49424132,85.388,85.362,11.71481455]
[1772827300741,0.49424132,85.379,85.358,8.92480109]
[1772827300947,11.71138463,85.387,85.358,8.92480109]
[1772827301949,11.71138463,85.387,85.343,12.14390734]
[1772827302754,11.71138463,85.387,85.344,0.27898433]
[1772827303545,11.71070569,85.392,85.344,0.27898433]
[1772827303736,11.70938999,85.402,85.347,0.27898424]
[1772827303942,11.70991148,85.398,85.347,0.27898424]
[1772827304348,0.49424132,85.396,85.347,0.27898424]
[1772827305060,0.49424132,85.402,85.35,0.27898415]
[1772827305469,11.71027129,85.396,85.35,0.27898415]
[1772827307248,11.71066726,85.393,85.353,0.2789839]
[1772827307448,0.49424132,85.389,85.353,0.2789839]
[1772827307871,0.49424132,85.389,85.351,11.71632435]
[1772827308169,0.49424132,85.369,85.336,0.14216157]
[1772827308353,0.49424132,85.369,85.336,0.42648471]
[1772827308982,0.49424132,85.369,85.335,41.01482392]
[1772827309166,0.49424132,85.369,85.336,0.42648471]
[1772827309965,0.49424132,85.367,85.336,0.42648471]
[1772827310163,11.70823251,85.368,85.338,0.14216157]
[1772827310480,11.70823251,85.368,85.339,0.46052163]
[1772827311690,11.71248199,85.379,85.34,11.71783454]
[1772827311892,11.71248199,85.379,85.34,12.17835617]
[1772827312195,0.49424132,85.378,85.34,12.17835617]
[1772827312377,0.49424132,85.378,85.341,0.46052163]
[1772827314690,11.71275636,85.377,85.342,11.71755993]
[1772827314889,0.49424132,85.376,85.342,11.71755993]
[1772827315285,0.2,85.39,85.345,0.46052163]
[1772827315489,11.71111033,85.389,85.349,0.46052163]
[1772827316788,11.71111033,85.389,85.35,11.71646162]